[Event "11th Festival Palmanova-A 2022"]
[Site "Strassoldo"]
[Date "2022.12.08"]
[Round "1.9"]
[White "Iolis, Oleg"]
[Black "Privitera, Franco"]
[Result "1-0"]
[ECO "C02"]
[WhiteElo "2212"]
[BlackElo "1945"]
[Annotator "TA"]
[PlyCount "75"]
[EventDate "2022.12.08"]
[EventType "swiss"]
[EventCountry "ITA"]
[SourceTitle "playchess.com"]
[Source "ChessBase"]
[SourceQuality "1"]
[TimeControl "5400+30"]

{[%evp 9,75,43,52,24,35,43,86,111,112,39,41,33,33,28,62,54,130,144,138,150,147,132,125,139,135,116,110,104,163,78,158,105,162,146,199,196,186,172,208,87,90,77,82,84,84,76,80,80,86,86,91,87,93,87,933,104,109,109,118,121,124,0,96,100,99,16,29997,29998]} 1. e4 {[%emt 0:00:03]} e6 {[%emt 0:00:20]} 2. d4 {[%emt 0:00:04]} d5 {[%emt 0:00:06]} 3. e5 {[%emt 0:00:01]} Qd7 {[%emt 0:00:46]} 4. Nf3 {[%emt 0:00:10]} b6 {[%emt 0:00:09]} 5. Be2 {[%emt 0:00:04]} Ba6 {[%emt 0:00:09]} 6. O-O {[%emt 0:00:04] C02: French: Advance Variation.} Bxe2 {[%emt 0:01:13]} 7. Qxe2 {[%emt 0:00:03]} c5 {[%emt 0:00:11]} 8. c4 {[%emt 0:00:08] White is better.} cxd4 {[%emt 0:05:52]} 9. Nxd4 {[%emt 0:02:02] White is more active.} (9. cxd5 $16 {Black must now prevent d6.} Qxd5 10. Rd1) 9... Bc5 $14 {[%emt 0:01:01]} 10. Nb3 {[%emt 0:04:56] [#]} Ne7 $146 {[%emt 0:01:51]} ({Predecessor:} 10... d4 11. Rd1 Nc6 12. Nc3 f6 13. Nxc5 bxc5 14. Ne4 Nxe5 15. Nxc5 Qc6 {1-0 (48) Sedina,E (2398)-Debailleul,P Bethune 1999}) 11. Nc3 {[%emt 0:01:02]} (11. Bg5 {seems wilder.} Nbc6 12. Nc3 dxc4 13. Rfd1) 11... Bb4 {[%emt 0:09:24]} 12. cxd5 {[%emt 0:04:45]} Bxc3 {[%emt 0:06:24]} (12... exd5 $14 13. Bg5 Nbc6) 13. dxe6 $1 $16 {[%emt 0:00:16]} Qxe6 {[%emt 0:00:16]} 14. bxc3 {[%emt 0:00:08]} Nbc6 {[%emt 0:03:20]} 15. f4 {[%emt 0:01:43]} O-O {[%emt 0:02:56]} 16. Ba3 {[%emt 0:01:25]} Rfd8 {[%emt 0:02:31] Inhibits f5.} 17. Bxe7 {[%emt 0:01:26]} Qxe7 {[%emt 0:03:30]} 18. Rad1 {[%emt 0:00:42]} g6 {[%emt 0:02:07] [#]} (18... Rxd1 $16 19. Rxd1 Rd8) 19. h3 {[%emt 0:02:30]} (19. Nd2 $1 $18 {has better winning chances.}) 19... Rac8 {[%emt 0:03:42]} (19... Rxd1 $142 20. Rxd1 Rd8) 20. Kh1 {[%emt 0:04:08]} (20. Nd2 $142) 20... Qh4 {[%emt 0:04:56]} (20... Rxd1 $16 21. Rxd1 Rd8) 21. Qf3 {[%emt 0:11:55]} Ne7 {[%emt 0:04:35]} (21... Qe7 $16 {was necessary.} 22. Nd2 Qe6) 22. Rxd8+ {[%emt 0:05:36]} Rxd8 {[%emt 0:00:12][%cal Bc8d8,Bd8d5,Bd5c5][%mdl 32]} 23. Nd4 {[%emt 0:00:06]} Rd5 {[%emt 0:06:19]} 24. f5 {[%emt 0:06:34]} (24. Qe4 $18 {and White stays clearly on top.}) 24... gxf5 {[%emt 0:03:35]} 25. Nxf5 {[%emt 0:00:24]} Nxf5 {[%emt 0:00:22]} 26. Qxf5 {[%emt 0:00:14][%mdl 4096] Endgame KQR-KQR} Qe7 {[%emt 0:01:16]} 27. Re1 {[%emt 0:03:40]} Qe6 {[%emt 0:04:42]} 28. Qe4 {[%emt 0:02:23]} Rc5 {[%emt 0:01:18]} 29. Re3 {[%emt 0:01:06]} Rd5 {[%emt 0:06:30]} 30. c4 {[%emt 0:07:36]} (30. Qh4 {looks sharper.} h6 31. c4 Rd1+ 32. Kh2) 30... Rc5 {[%emt 0:05:31]} 31. Qd4 {[%emt 0:05:52]} (31. Qh4 {feels hotter.} Rc8 32. Rd3 Re8 33. Rd5) 31... h6 $2 {[%emt 0:03:33][%mdl 8192]} (31... Rc8 $16) 32. Re4 $2 {[%emt 0:01:50]} (32. Rg3+ $18 {is the precise move to win.} Kf8 33. Qd8+ Qe8 34. Qd6+ Qe7 {[#]} 35. Rg8+ $3 {[%mdl 512]} Kxg8 36. Qxe7) 32... Rc8 {[%emt 0:02:23]} 33. Rg4+ {[%emt 0:04:09]} Kh7 {[%emt 0:02:34]} 34. Rf4 {[%emt 0:00:44] Strongly threatening Qd3+.} Kg7 {[%emt 0:02:17]} 35. Rg4+ {[%emt 0:08:03]} (35. Qf2 $16 Rc5 36. Rf6) 35... Kh8 {[%emt 0:01:46]} (35... Kh7 $1 $11 {remains equal.}) 36. Qd6 {[%emt 0:07:29]} Re8 {[%emt 0:00:30]} 37. Rd4 {[%emt 0:00:21]} ({White should play} 37. Qd2 $16) 37... Qxe5 $2 {[%emt 0:01:59][%mdl 8192]} (37... Kg7 $11) 38. Qxh6+ {[%emt 0:00:09] Weighted Error Value: White=0.39/Black=0.37} 1-0

[Event "11th Festival Palmanova-A 2022"]
[Site "Strassoldo"]
[Date "2022.12.08"]
[Round "1.10"]
[White "Persico, Lorenzo"]
[Black "Hercegovac, Neven"]
[Result "1/2-1/2"]
[ECO "B77"]
[WhiteElo "1930"]
[BlackElo "2230"]
[Annotator "TA"]
[PlyCount "136"]
[EventDate "2022.12.08"]
[EventType "swiss"]
[EventCountry "ITA"]
[SourceTitle "playchess.com"]
[Source "ChessBase"]
[SourceQuality "1"]
[TimeControl "5400+30"]

{[%evp 23,136,24,23,38,38,0,0,0,0,-30,0,0,0,0,0,0,0,0,0,-22,-7,-33,-37,-35,0,0,24,26,21,54,54,54,54,41,55,54,133,61,83,38,45,0,0,0,145,145,152,152,146,90,152,0,0,0,0,0,0,0,0,0,57,0,0,0,0,0,0,0,0,0,0,0,0,0,0,0,0,0,0,0,0,0,0,0,0,0,0,0,0,0,0,0,0,0,0,0,0,0,0,0,0,0,0,0,0,0,0,0,0,0,0,0,0,0,0]} 1. e4 {[%emt 0:00:31]} c5 {[%emt 0:00:14]} 2. Nf3 {[%emt 0:00:23]} Nc6 {[%emt 0:02:08]} 3. d4 {[%emt 0:00:22]} cxd4 {[%emt 0:00:05]} 4. Nxd4 {[%emt 0:00:06]} g6 {[%emt 0:00:03]} 5. Nc3 {[%emt 0:00:11]} Bg7 {[%emt 0:00:05]} 6. Be3 {[%emt 0:00:07]} Nf6 {[%emt 0:00:31]} 7. Bc4 {[%emt 0:00:23]} O-O {[%emt 0:00:08]} 8. Bb3 {[%emt 0:00:13]} d6 {[%emt 0:00:34]} 9. f3 {[%emt 0:00:20]} Qa5 {[%emt 0:00:37]} 10. Qd2 {[%emt 0:01:48]} Nxd4 {[%emt 0:00:05]} 11. Bxd4 {[%emt 0:00:22]} Be6 {[%emt 0:00:07]} 12. O-O-O {[%emt 0:04:37]} b5 {[%emt 0:00:10]} 13. Kb1 {[%emt 0:00:31] B77: Sicilian Dragon: Yugoslav Attack, 9 Bc4 sidelines.} b4 {[%emt 0:00:08]} 14. Ne2 {[%emt 0:03:31]} Bxb3 {[%emt 0:02:54]} 15. cxb3 {[%emt 0:01:15]} e5 {[%emt 0:00:58]} 16. Be3 {[%emt 0:15:56]} (16. Bf2 $5 {[%cal Rd2d6]}) 16... Rfd8 {[%emt 0:03:08]} (16... d5 {keeps more tension.} 17. exd5 Rfd8 18. Bg5 Rxd5 19. Qc1 Rc5) 17. Bg5 {[%emt 0:29:06]} d5 {[%emt 0:01:32]} 18. Bxf6 {[%emt 0:00:35]} Bxf6 {[%emt 0:00:02]} 19. exd5 {[%emt 0:00:18] [#]} Rd7 $146 {[%emt 0:00:22]} ({Predecessor:} 19... Rd6 20. a3 Rad8 21. Qxb4 Qxb4 22. axb4 Rxd5 23. Rxd5 Rxd5 24. Nc3 Rd4 25. Kc2 Bg5 {1-0 (38) Kanarek,M (2406)-Belous,V (2414) Moscow 2009}) 20. Ng3 {[%emt 0:11:13]} Rad8 {[%emt 0:00:20][%cal Rd7d5]} 21. d6 {[%emt 0:06:59]} Bg7 $1 {[%emt 0:13:36]} 22. Ne4 {[%emt 0:07:36]} f5 {[%emt 0:00:29]} 23. Ng5 {[%emt 0:00:30]} Bh6 {[%emt 0:01:25] Threatens to win with ...Rxd6.} (23... Bf6 {simplifies} 24. Qc1 Bxg5 25. Qxg5 Rxd6 26. Rxd6 Rxd6 27. Rc1 Qd8) 24. h4 $36 {[%emt 0:00:43][%mdl 2048] White has the initiative.} Bxg5 {[%emt 0:09:09]} 25. hxg5 {[%emt 0:01:29]} Qc5 {[%emt 0:01:02][%cal Rc5d6]} 26. Qd5+ {[%emt 0:00:21]} Qxd5 {[%emt 0:00:07]} 27. Rxd5 {[%emt 0:00:05]} Rxd6 {[%emt 0:00:14]} 28. Rxe5 {[%emt 0:01:40]} Rd1+ {[%emt 0:25:03]} 29. Rxd1 {[%emt 0:00:05]} Rxd1+ $14 {[%emt 0:00:06][%mdl 4096] Endgame KR-KR} 30. Kc2 {[%emt 0:00:03]} Ra1 {[%emt 0:00:14]} 31. Ra5 {[%emt 0:01:20]} Rg1 {[%emt 0:00:34]} 32. f4 {[%emt 0:05:42] Kd3 is the strong threat.} Rxg2+ {[%emt 0:00:08]} 33. Kd3 {[%emt 0:00:05]} Rxb2 {[%emt 0:02:32]} (33... h6 $11 {remains equal.}) 34. Rxa7 $16 {[%emt 0:00:09]} Rf2 {[%emt 0:02:57]} 35. Ke3 {[%emt 0:00:10]} Rf1 {[%emt 0:01:13] [#]} 36. Ra4 $1 {[%emt 0:00:55] White is more active.} Re1+ {[%emt 0:00:15] [#]} (36... Ra1 $142) 37. Kf3 $2 {[%emt 0:00:51]} ({Only move:} 37. Kd4 $1 $16) 37... Re4 $11 {[%emt 0:00:03]} 38. Ra7 {[%emt 0:02:01]} Rd4 {[%emt 0:00:38]} 39. Rc7 {[%emt 0:02:55]} Rd3+ {[%emt 0:04:31]} 40. Ke2 {[%emt 0:00:10]} Rh3 {[%emt 0:03:17]} 41. Rc4 {[%emt 0:01:06]} h6 {[%emt 0:04:11]} (41... h5 $11) 42. gxh6 {[%emt 0:00:32]} ({White should try} 42. Rxb4 $14 Rh2+ 43. Kf3) 42... Rxh6 {[%emt 0:00:07] The position is equal.} 43. Rxb4 {[%emt 0:02:13] Hoping for a4.} Rh2+ {[%emt 0:00:06]} 44. Ke3 {[%emt 0:00:07]} Rxa2 {[%emt 0:00:05]} 45. Rb7 {[%emt 0:00:51]} Ra1 {[%emt 0:04:28]} 46. Kd4 {[%emt 0:01:20] Black must now prevent b4.} Re1 {[%emt 0:00:31]} 47. Kc5 {[%emt 0:00:38]} (47. b4 $5 Re4+ $8 48. Kc3 Re3+ 49. Kd2 $11) 47... Re4 {[%emt 0:00:12]} 48. Rb4 {[%emt 0:00:44] White wants to mate with Rxe4.} Re3 {[%emt 0:00:48]} 49. Rb7 {[%emt 0:00:44]} Re4 {[%emt 0:01:12]} 50. Rb4 {[%emt 0:00:06] White threatens Rxe4 and mate.} Re3 {[%emt 0:00:04]} 51. Kd4 {[%emt 0:00:44]} Re4+ {[%emt 0:01:03]} 52. Kc3 {[%emt 0:00:06] Strongly threatening Rxe4.} Re3+ {[%emt 0:00:37]} 53. Kd2 {[%emt 0:00:07]} Rf3 {[%emt 0:00:56]} 54. Ke2 {[%emt 0:00:06]} Rg3 {[%emt 0:01:25]} 55. Rb5 {[%emt 0:01:28]} Kf7 {[%emt 0:00:22]} 56. Kf2 {[%emt 0:00:19]} Rd3 {[%emt 0:00:20]} 57. Rb8 {[%emt 0:00:54]} Kf6 {[%emt 0:01:11]} 58. b4 {[%emt 0:00:09]} Rb3 {[%emt 0:00:28]} 59. b5 {[%emt 0:00:15]} Ke6 {[%emt 0:06:12]} 60. b6 {[%emt 0:01:27]} Kd7 {[%emt 0:01:50]} 61. b7 {[%emt 0:00:32]} Kc7 {[%emt 0:00:38]} 62. Rg8 {[%emt 0:00:15]} Kxb7 {[%emt 0:00:12]} 63. Rxg6 {[%emt 0:00:08]} Kc7 {[%emt 0:00:13]} 64. Re6 {[%emt 0:01:03]} Rb5 {[%emt 0:00:31]} (64... Kd7 $5 {[%cal Rd7e6]} 65. Re5 Rc3 $11) 65. Kg3 {[%emt 0:00:39]} Kd7 {[%emt 0:00:05]} 66. Re3 {[%emt 0:00:30]} Rb6 {[%emt 0:03:24]} 67. Kf3 {[%emt 0:00:49]} Re6 {[%emt 0:00:22]} 68. Rd3+ {[%emt 0:00:28]} Ke7 {[%emt 0:00:07] Weighted Error Value: White=0.11 (very precise) /Black=0.12 (very precise)} 1/2-1/2

[Event "11th Festival Palmanova-A 2022"]
[Site "Strassoldo"]
[Date "2022.12.08"]
[Round "1.11"]
[White "Bardone, Lorenzo"]
[Black "Ranfagni, Stefano"]
[Result "0-1"]
[ECO "A90"]
[WhiteElo "2215"]
[BlackElo "1934"]
[Annotator "TA"]
[PlyCount "94"]
[EventDate "2022.12.08"]
[EventType "swiss"]
[EventCountry "ITA"]
[SourceTitle "playchess.com"]
[Source "ChessBase"]
[SourceQuality "1"]
[TimeControl "5400+30"]

{[%evp 21,94,16,33,19,12,14,18,20,26,20,18,16,25,10,25,19,17,21,34,33,50,27,55,24,18,20,8,-79,-84,-92,-85,-80,-79,-214,-219,-237,-218,-190,-202,-496,-454,-1160,-941,-999,-941,-911,-797,-1020,-979,-1322,-1316,-1252,-1130,-29978,-29980,-29984,-29985,-29991,-4900,-2535,-1942,-1832,-1776,-2451,-2039,-29986,-29987,-29989,-29985,-29985,-29985,-29997,-29998,-29998,-29989]} 1. d4 {[%emt 0:00:02]} e6 {[%emt 0:00:04]} 2. c4 {[%emt 0:00:40]} f5 {[%emt 0:00:06]} 3. g3 {[%emt 0:01:05]} Nf6 {[%emt 0:00:07]} 4. Bg2 {[%emt 0:00:20]} c6 {[%emt 0:00:26]} 5. Nf3 {[%emt 0:00:54]} d5 {[%emt 0:00:08]} 6. O-O {[%emt 0:00:36]} Bd6 {[%emt 0:00:12]} 7. b3 {[%emt 0:00:23]} Qe7 {[%emt 0:00:11]} 8. a4 {[%emt 0:00:18]} O-O {[%emt 0:00:59]} 9. Ba3 {[%emt 0:00:38]} Bxa3 {[%emt 0:00:49]} 10. Nxa3 {[%emt 0:00:08][%cal Bb1a3,Ba3c2,Bc2e1,Be1d3,Bd3b4][%mdl 32]} a5 {[%emt 0:00:27]} 11. Nc2 {[%emt 0:08:29]} Nbd7 {[%emt 0:01:25]} 12. cxd5 {[%emt 0:15:00] A90: Dutch Defence: Miscellaneous and Modern Stonewall (with ...Bd6).} exd5 {[%emt 0:02:27]} 13. Nce1 {[%emt 0:02:17]} Ne4 {[%emt 0:05:18]} 14. Nd3 {[%emt 0:11:12] The position is equal.} b6 {[%emt 0:04:56] [#]} 15. Qc2 $146 {[%emt 0:02:38]} ({Predecessor:} 15. Rc1 Bb7 16. Nfe5 Nxe5 17. Nxe5 c5 18. f4 Rfd8 19. e3 Qe6 20. Bh3 Ba6 21. Re1 {0-1 (68) Koksal,E (2198)-Cheng,B (2358) Istanbul 2012}) 15... Bb7 {[%emt 0:00:44]} 16. Rfd1 {[%emt 0:02:54]} Rac8 {[%emt 0:03:02]} 17. Qb2 {[%emt 0:05:38]} Rfe8 {[%emt 0:03:52]} 18. b4 {[%emt 0:09:09]} axb4 {[%emt 0:03:52]} 19. Nxb4 {[%emt 0:00:32]} Nd6 {[%emt 0:05:24]} 20. e3 {[%emt 0:02:30]} Nc4 {[%emt 0:00:12]} 21. Qb3 {[%emt 0:02:42]} Nf6 {[%emt 0:03:06]} 22. Nd2 {[%emt 0:01:11]} Na5 {[%emt 0:02:27]} 23. Qb1 {[%emt 0:00:52]} Ne4 {[%emt 0:04:28]} 24. Bxe4 {[%emt 0:04:24]} (24. Nd3 $1 $11 {remains equal.}) 24... fxe4 $17 {[%emt 0:00:31]} 25. Nc2 {[%emt 0:02:07]} Qc7 {[%emt 0:00:55]} 26. Ne1 {[%emt 0:02:30]} Ba6 {[%emt 0:05:00] Black is more active.} 27. Qa2 {[%emt 0:01:36] This costs White the game.} (27. Nb3 $17) 27... Qf7 $19 {[%emt 0:04:07]} 28. Nf1 {[%emt 0:03:31]} Bc4 {[%emt 0:03:44]} 29. Qb2 {[%emt 0:00:16]} Rf8 {[%emt 0:01:03]} 30. f4 $2 {[%emt 0:07:14]} (30. h4 {keeps fighting.}) 30... exf3 {[%emt 0:01:14]} 31. Kf2 {[%emt 0:01:45]} (31. Qf2 $142 Be2 32. Nd2) 31... Bxf1 {[%emt 0:00:39]} 32. Kxf1 {[%emt 0:00:19]} Nc4 {[%emt 0:00:31]} 33. Qf2 {[%emt 0:00:48]} Nd6 {[%emt 0:01:14]} 34. Nd3 {[%emt 0:01:13]} Ne4 {[%emt 0:00:56]} 35. Qb2 {[%emt 0:01:23]} Qh5 {[%emt 0:01:00]} 36. Nf4 {[%emt 0:01:17] [#] Against f2} Rxf4 $1 {[%emt 0:01:47][%mdl 512]} 37. gxf4 {[%emt 0:01:33]} (37. exf4 Qh3+) 37... Qh3+ {[%emt 0:00:30]} 38. Ke1 {[%emt 0:00:14]} f2+ {[%emt 0:00:56][%mdl 64] Discovered Attack} 39. Ke2 {[%emt 0:00:49]} Qxh2 {[%emt 0:00:45]} (39... f1=B+ $142 40. Rxf1 Qg2+ 41. Ke1 Qxb2 42. Rf3 Qxa1+ 43. Ke2 Qg1 44. h4 Qg2+ 45. Ke1 Qxf3 46. h5 Qxe3+ 47. Kf1 Qf2#) 40. Rf1 {[%emt 0:01:00]} c5 {[%emt 0:03:41] [#] ( -> ...Qh5+)} 41. Kd3 {[%emt 0:02:42]} cxd4 {[%emt 0:06:06]} 42. Rac1 {[%emt 0:02:17]} Nc5+ {[%emt 0:01:42]} 43. Ke2 {[%emt 0:02:58]} Qh5+ {[%emt 0:00:55] Black mates.} (43... Nxa4 44. Rxc8+ Kf7 45. Rc7+ Ke6 46. Qxd4 Qh5+ 47. Kd2 Nc5 48. Qxg7 (48. Rxg7 $2 Nb3+ 49. Kc3 Nxd4 $19) 48... Nb3+ 49. Kc3) 44. Kd2 {[%emt 0:00:08]} dxe3+ {[%emt 0:00:28]} (44... Nxa4 45. Rxc8+ Kf7 46. Qxd4 Nc5 47. Rc7+ (47. Rxf2 $2 {too greedy.} Nb3+ 48. Kc3 Nxd4 $19) 47... Ke6 48. Qxg7 (48. Rxg7 $2 Nb3+ 49. Kc3 Nxd4 $19) 48... Nb3+ 49. Kc3 d4+ 50. exd4 (50. Kxb3 Qb5+ 51. Kc2 Qe2+ 52. Kb3 Qb5+ 53. Ka2 Qa6+ 54. Kb2 Qb5+ 55. Ka3 Qa5+ 56. Kb3 Qb5+ $11) (50. Kb4 Qa5+ 51. Kc4 Qa6+ 52. Kxb3 Qb5+ 53. Ka2 Qa6+ 54. Kb1 Qxf1+ 55. Kc2 Qe2+ 56. Kb3 Qxe3+ 57. Kb4 Qd2+ 58. Kb3 Qe3+ 59. Kb4 Qe1+ 60. Kb3 Qe3+ $11)) 45. Kxe3 {[%emt 0:01:01]} Re8+ {[%emt 0:00:21]} ({But not} 45... Nxa4 46. Rxc8+ Kf7 47. Rc7+ (47. Qxf2 Qh3+ 48. Qf3 Qxc8 $14) 47... Ke6 48. Qxg7 Qh3+ 49. Kxf2 Qh2+ 50. Ke1 Qh4+ 51. Rf2) 46. Kd4 {[%emt 0:00:35]} Re4+ {[%emt 0:00:11]} 47. Kc3 {[%emt 0:00:12]} Nxa4+ {[%emt 0:00:05] Weighted Error Value: White=1.06/Black=0.39} 0-1

[Event "11th Festival Palmanova-A 2022"]
[Site "Strassoldo"]
[Date "2022.12.08"]
[Round "1.12"]
[White "Laco, Giuseppe"]
[Black "Damia, Angelo"]
[Result "0-1"]
[ECO "A13"]
[WhiteElo "1913"]
[BlackElo "2192"]
[Annotator "TA"]
[PlyCount "64"]
[EventDate "2022.12.08"]
[EventType "swiss"]
[EventCountry "ITA"]
[SourceTitle "playchess.com"]
[Source "ChessBase"]
[SourceQuality "1"]
[TimeControl "5400+30"]

{[%evp 9,64,-8,-7,-11,-12,-8,-5,-48,-54,-58,-52,-57,-39,-33,-41,-43,-38,-44,-40,-56,-33,-54,-33,-38,-25,-49,-35,-139,-143,-126,-127,-141,-138,-127,-93,-127,-110,-466,-464,-416,-354,-579,-579,-567,-558,-654,-677,-880,-790,-777,-775,-1140,-1102,-1118,-718,-882,-877]} 1. c4 {[%emt 0:00:02]} Nf6 {[%emt 0:00:17]} 2. Nf3 {[%emt 0:00:31]} e6 {[%emt 0:00:04]} 3. a3 {[%emt 0:01:05]} d5 {[%emt 0:00:15]} 4. e3 {[%emt 0:00:37]} Nbd7 {[%emt 0:01:34]} 5. b3 {[%emt 0:01:47]} Bd6 {[%emt 0:00:38]} 6. Nc3 {[%emt 0:01:51] A13: English Opening: 1...e6.} c6 {[%emt 0:00:06] [#]} 7. d4 $146 {[%emt 0:00:43]} ({Predecessor:} 7. Be2 O-O 8. O-O e5 9. cxd5 cxd5 10. a4 Re8 11. h3 Nb8 12. Nb5 e4 13. Nfd4 Be5 14. Bb2 a6 15. Na3 Bc7 16. Rc1 Qd6 17. g3 Qd7 18. Qc2 Nc6 {0-1 (18) Faust,D (1826)-Carrizo,J (2065) FICGS email 2016}) 7... O-O {[%emt 0:02:59]} 8. c5 {[%emt 0:04:01] The position is equal.} Bc7 {[%emt 0:00:09]} 9. b4 {[%emt 0:00:25]} e5 {[%emt 0:00:07]} 10. Be2 {[%emt 0:01:49]} Ne4 {[%emt 0:06:49]} 11. Nxe4 {[%emt 0:05:08]} dxe4 {[%emt 0:00:04]} 12. Nd2 {[%emt 0:00:33]} exd4 {[%emt 0:15:34]} 13. Nxe4 {[%emt 0:02:01]} a5 {[%emt 0:00:05][%cal Ba7a5,Ba5b4][%mdl 32] Threatens to win with ...axb4.} 14. exd4 {[%emt 0:04:54]} (14. Qxd4 $2 Be5 15. Qd3 Bxa1 $19) 14... axb4 {[%emt 0:00:13]} (14... Re8 $5 {[%cal Re8e4]} 15. Ng3 (15. Bg5 $2 f6 $19) 15... axb4 $15) 15. Bg5 {[%emt 0:03:44]} Qe8 {[%emt 0:08:47]} (15... f6 {is more complex.} 16. Be3 Qe7 17. Qd3 bxa3 18. O-O f5) 16. Nd6 {[%emt 0:03:07]} Qe6 {[%emt 0:00:13]} 17. Nxc8 {[%emt 0:03:37]} (17. axb4 Rxa1 18. Qxa1 Bxd6 19. cxd6 Qd5 $17) 17... Rfxc8 {[%emt 0:00:10]} 18. axb4 {[%emt 0:00:33]} (18. O-O $15) 18... Rxa1 $17 {[%emt 0:00:14]} 19. Qxa1 {[%emt 0:00:10]} Qd5 {[%emt 0:00:07][%csl LRg2,LRg5][%cal Od5g2] [#] ...Qxg2! is the strong threat.} (19... Re8 $6 20. Be3 $11) 20. Be3 {[%emt 0:02:14]} Qxg2 {[%emt 0:00:06]} 21. Kd2 {[%emt 0:03:18]} Nf6 {[%emt 0:00:23] And now ...Ne4+ would win. Black is more active.} (21... Bxh2 22. Qf1 Qxf1 23. Bxf1 $14) 22. Rg1 {[%emt 0:03:01]} Qd5 {[%emt 0:03:27]} ({And not} 22... Qxh2 23. Rh1 Qg2 24. Qf1 $15) 23. f3 $2 {[%emt 0:03:49][%mdl 8192] Now White is beyond hope.} (23. h4 $17) 23... Re8 $19 {[%emt 0:01:09][%cal Od5e6] [#] White must now prevent ...Qe6!} (23... Bxh2 $2 {too greedy.} 24. Rg2 Bc7 25. Rg5 $19) 24. Bg5 {[%emt 0:15:59]} Be5 {[%emt 0:13:33]} 25. Be3 {[%emt 0:01:40]} (25. Bc4 {might work better.} Qxc4 26. dxe5 Qxb4+ 27. Qc3 Rd8+ 28. Kc2 Qa4+ 29. Qb3) 25... Bxh2 {[%emt 0:01:26] Black is clearly winning.} 26. Rg2 {[%emt 0:03:31]} Bc7 {[%emt 0:04:06]} 27. Bg5 {[%emt 0:10:50]} Nh5 {[%emt 0:04:36][%cal Bf6h5,Bh5f4,Bf4e6][%mdl 32]} 28. Bd1 {[%emt 0:01:53]} Bf4+ {[%emt 0:00:42]} 29. Bxf4 {[%emt 0:00:21]} Nxf4 {[%emt 0:00:03]} 30. Rg4 {[%emt 0:01:09]} h5 {[%emt 0:01:22]} 31. Rg1 {[%emt 0:01:54]} Ne6 {[%emt 0:00:50]} 32. Re1 {[%emt 0:04:53]} Rd8 {[%emt 0:36:22] Weighted Error Value: White=0.85/Black=0.39} ({Less strong is} 32... Qxd4+ 33. Qxd4 Nxd4 34. Rxe8+ $18) 0-1

[Event "11th Festival Palmanova-A 2022"]
[Site "Strassoldo"]
[Date "2022.12.09"]
[Round "2.1"]
[White "Savanovic, Aleksandar"]
[Black "Damia, Angelo"]
[Result "0-1"]
[ECO "B07"]
[WhiteElo "2365"]
[BlackElo "2192"]
[Annotator "TA"]
[PlyCount "62"]
[EventDate "2022.12.08"]
[EventType "swiss"]
[EventCountry "ITA"]
[SourceTitle "playchess.com"]
[Source "ChessBase"]
[SourceQuality "1"]
[TimeControl "5400+30"]

{[%evp 9,62,44,48,38,41,42,47,39,50,20,38,-6,45,39,46,50,50,46,44,49,50,39,47,52,42,10,37,26,50,35,29,29,62,43,68,70,100,95,124,91,70,18,18,5,10,-254,-234,-230,0,0,0,-660,-620,-29997,-29998]} 1. e4 {[%emt 0:00:15]} d6 {[%emt 0:00:09]} 2. d4 {[%emt 0:00:12]} Nf6 {[%emt 0:00:03]} 3. Nc3 {[%emt 0:00:12]} c6 {[%emt 0:00:02]} 4. Nf3 {[%emt 0:00:58]} Qc7 {[%emt 0:04:27]} 5. h3 {[%emt 0:00:57]} e5 {[%emt 0:00:05]} 6. a4 {[%emt 0:01:30] B07: Pirc Defence: Miscellaneous Systems.} Be7 {[%emt 0:01:50]} 7. Bc4 {[%emt 0:01:20]} O-O {[%emt 0:00:22][%cal Od6d5]} 8. O-O {[%emt 0:00:52] White is slightly better.} Rd8 {[%emt 0:25:50]} 9. d5 {[%emt 0:22:15]} Nbd7 {[%emt 0:17:19]} 10. a5 {[%emt 0:03:21]} Nf8 {[%emt 0:02:27] [#]} (10... b5 $11 11. axb6 Nxb6) 11. Re1 $146 {[%emt 0:03:01]} ({Predecessor:} 11. Be3 Bd7 12. Qe2 h6 13. Bb3 Be8 14. Nd2 Ng6 15. g3 Nd7 16. h4 Bf6 17. Rfd1 {1-0 (85) Cadilhac,I (2288)-Aguilar,L (2193) Asuncion 2019}) 11... cxd5 {[%emt 0:05:02]} 12. Nxd5 {[%emt 0:01:38]} Nxd5 {[%emt 0:01:03]} 13. Bxd5 {[%emt 0:00:07]} (13. Qxd5 $2 Be6 14. Qd1 Qxc4 $19) 13... Be6 {[%emt 0:00:14]} 14. c4 {[%emt 0:03:30]} Bxd5 {[%emt 0:03:19]} 15. Qxd5 {[%emt 0:07:09]} Rac8 {[%emt 0:11:26]} 16. b3 {[%emt 0:00:17]} Qc6 {[%emt 0:00:27]} 17. Qd3 {[%emt 0:01:32]} Ne6 {[%emt 0:02:04]} 18. Be3 {[%emt 0:02:25]} a6 {[%emt 0:02:05]} 19. g3 {[%emt 0:17:24]} Nc5 {[%emt 0:06:36]} 20. Bxc5 {[%emt 0:03:11]} Qxc5 {[%emt 0:00:01]} 21. h4 {[%emt 0:02:03]} Rd7 {[%emt 0:01:20]} 22. Red1 {[%emt 0:01:44]} Bd8 {[%emt 0:03:24]} 23. Qe2 {[%emt 0:03:28]} Qb4 {[%emt 0:04:47]} (23... Bxa5 $2 24. Rd5 Qb4 25. Raxa5 $18) 24. Rd3 {[%emt 0:07:10]} Bxa5 {[%emt 0:05:10]} 25. Ra4 {[%emt 0:00:26]} ({Reject} 25. Nxe5 Re7 26. Ra4 Qb6 $11) (25. h5 $14) 25... Qb6 $1 $11 {[%emt 0:00:01]} (25... Qc5 $2 26. Rd5 Qb6 27. Raxa5 $18) 26. Nxe5 {[%emt 0:00:38]} Re7 {[%emt 0:01:20]} 27. Qg4 $2 {[%emt 0:00:55][%mdl 8192] [#]} (27. c5 $11 Rxc5 28. Nc4) 27... f5 $1 $19 {[%emt 0:00:01]} 28. exf5 {[%emt 0:08:52][%cal Be4f5,Bf5f6][%mdl 32]} dxe5 $2 {[%emt 0:01:50]} ({Black should play} 28... Rxe5 $19 29. f6 Rc7) 29. f6 $1 $11 {[%emt 0:00:15]} Rf8 {[%emt 0:00:01]} 30. Rxa5 $4 {[%emt 0:01:44][%mdl 8192]} (30. fxe7 $2 {is a self mate.} Qxf2+ 31. Kh1 Qf1+ 32. Kh2 Rf2#) (30. Rd6 $11 Qc5 31. Rd5 (31. fxe7 $2 {leads to mate.} Qxf2+ 32. Kh1 Qf1+ 33. Kh2 Rf2#)) 30... Qxa5 $19 {[%emt 0:00:32]} 31. fxe7 {[%emt 0:00:14] [#] aiming for Qe6+.} Qe1+ {[%emt 0:00:03][%mdl 64] Deflection, Double Attack.   Weighted Error Value: White=0.81/Black=0.23 (precise)} 0-1